Cogmind - Beta 16 @@@ ROGUE MODE // 2025.12.01 @ 11:17:03 Player: Jamba27 Result: Destroyed by 7H-H8F(R) with Subdweller Beam Cannon Performance ------------- Evolutions (0) 0 Regions Visited (2) 400 Robots Destroyed (24) 120 Value Destroyed (495) 495 Prototype IDs (2) 40 Alien Tech Used (0) 0 Bonus (0) 0 TOTAL SCORE: 1055 Bonus ------- None Cogmind --------- Core Integrity 0/250 Matter 271/300 Energy 125/125 System Corruption 0% Temperature Hot (232) Movement Core (250) Ox4 Location -10/Subcaves Parts ------- > --- POWER (1) -------- Light Ion Engine > --- PROPULSION (2) --- (None) > --- UTILITY (2) ------ Small Storage Unit Structural Scanner > --- WEAPON (2) ------- Subdweller Machine Gun > --- INVENTORY (8) ---- Light Ion Engine Light Treads Aluminum Leg Large Storage Unit Visual Processing Unit Light Assault Rifle Datajack Peak State ------------ > --- POWER ------------ Light Ion Engine > --- PROPULSION ------- Light Treads Light Treads > --- UTILITY ---------- Small Storage Unit Improved Terrain Scanner > --- WEAPON ----------- Assault Rifle Light Assault Rifle > --- INVENTORY -------- Ion Engine Light Ion Engine Light Ion Engine Small Storage Unit Visual Processing Unit Medium Laser [Rating: 9] Favorites ----------- Power Light Ion Engine Engine Light Ion Engine Propulsion Aluminum Leg Treads Light Treads Leg Aluminum Leg Utility Small Storage Unit Device Structural Scanner Storage Small Storage Unit Protection Backup Plating I Weapon Light Assault Rifle Energy Gun Medium Laser Ballistic Gun Light Assault Rifle Launcher Grenade Launcher Special Weapon Mining Laser Build | -11 -10 -10 ------- Run | Yrd Mat Sub Slots Evolved . | . . . Power . | . . . Propulsion . | . . . Utility . | . . . Weapon . | . . . Parts Attached 18 | 5 11 2 Power 4 | . 4 . Engine 4 | . 4 . Core . | . . . Reactor . | . . . Propulsion 4 | 2 2 . Treads 2 | 2 . . Leg 2 | . 2 . Wheel . | . . . Hover . | . . . Flight . | . . . Utility 3 | 1 2 . Device 2 | . 2 . Storage 1 | 1 . . Processor . | . . . Hackware . | . . . Protection . | . . . Artifact . | . . . Weapon 7 | 2 3 2 Energy Gun 1 | . 1 . Energy Cannon . | . . . Ballistic Gun 4 | 2 1 1 Ballistic Cannon . | . . . Launcher 1 | . . 1 Special Weapon 1 | . 1 . Impact Weapon . | . . . Slashing Weapon . | . . . Piercing Weapon . | . . . Special Melee Weapon . | . . . Unidentified Prototypes . | . . . Parts Lost 11 | . 6 5 Power 2 | . 2 . Propulsion 3 | . 1 2 Utility 1 | . 1 . Weapon 5 | . 2 3 Highest Loss Streak 5 | . 3 5 To Critical Strikes . | . . . Average Backups 6 | 2 7 7 Power 1 | 1 2 1 Propulsion . | . . 2 Utility 2 | . 2 2 Weapon . | . . 1 Tool/Special . | . . . Unused Backups 9 | . 3 6 Power 1 | . . 1 Propulsion 2 | . . 2 Utility 5 | . 3 2 Weapon . | . . . Tool/Special 1 | . . 1 Average Slot Usage (%) 90 | . 90 92 Engine 10 | . 10 14 Treads 11 | . 11 . Leg 14 | . 13 24 Device 10 | . 9 14 Storage 14 | . 14 14 Protection 1 | . 1 . Energy Gun 9 | . 9 12 Ballistic Gun 14 | . 14 8 Special Weapon 3 | . 3 3 Peak Build Rating 9 | 5 9 7 Average Rating 6 | 4 7 6 On Entrance 4 | . 5 7 Avg Prop Armor Cover (%) . | . . . Naked Turns . | . . . Heaviest Build 14 | 8 14 12 Greatest Support 40 | 40 40 20 Greatest Overweight (x) 1 | . . 1 Average Overweight (x) . | . . . Largest Inventory Capacity 8 | 8 8 8 Average Capacity 7 | 7 8 8 Most Carried 8 | 6 8 8 Average Carried 6 | 2 7 7 Final Capacity 8 | 8 8 8 Final Carried 8 | 6 8 7 Class Distribution -------------------- 100% | Mutant Dominant Class ---------------- Mutant | -10/Materials Mutant | -10/Subcaves Resources | -11 -10 -10 ----------- Run | Yrd Mat Sub Matter Collected 525 | 277 248 . Remotely . | . . . Salvage Created 712 | 62 614 36 Parts 53 | 8 42 3 Haulers Intercepted 1 | . 1 . Recyclers Shooed . | . . . Parts Field Recycled . | . . . Retrieved Matter . | . . . Parts Self-Destructed . | . . . Prevented . | . . . Parts Restored . | . . . Kills | -11 -10 -10 ------- Run | Yrd Mat Sub Combat Hostiles Destroyed 17 | . 16 1 Guns 16 | . 16 . AOE 1 | . . 1 Classes Destroyed 8 | 2 5 1 Tunneler 1 | 1 . . Hauler 1 | . 1 . Recycler 1 | 1 . . Operator 1 | . 1 . Watcher 3 | . 3 . Swarmer 7 | . 7 . Grunt 9 | . 9 . Subdweller 1 | . . 1 Best Kill Streak 5 | 1 5 1 Combat Bots Only 5 | . 5 1 Max Kills in Single Turn 2 | 1 2 1 Gunslinging 1 | . 1 . Exploded 1 | . . 1 Melee . | . . . Uniques/NPCs Destroyed . | . . . Combat | -11 -10 -10 -------- Run | Yrd Mat Sub Hostile Shots Fired 167 | . 149 18 Missed 50 | . 44 6 Hits 117 | . 105 12 Projectile 117 | . 105 12 Critical Strikes 2 | . . 2 Damage Taken 1364 | . 988 376 Core 258 | . 141 117 Absorbed by Shields . | . . . Core Remaining (%) 100 | 100 . . Volleys Fired 97 | 7 85 5 Largest 2 | 2 2 1 Hottest 100 | 40 100 100 Shots Fired 166 | 13 148 5 Gun 161 | 13 146 2 Cannon . | . . . Launcher 2 | . . 2 Special 3 | . 2 1 Kinetic 118 | 13 103 2 Thermal 46 | . 45 1 Explosive 2 | . . 2 Electromagnetic . | . . . Robot Hit Streak 10 | 10 6 5 Robot Miss Streak 3 | . 3 1 Penetration Max . | . . . Secondary Targets 3 | . 3 . Max Gunslinging Chain 1 | . 1 . Shots Hit Robots 101 | 10 88 3 Core Hits 41 | 3 35 3 Critical Kills . | . . . Critical Parts Destroyed 1 | . 1 . Critical Strikes 2 | . 2 . Burn 1 | . 1 . Destroy 1 | . 1 . Melee Attacks . | . . . Impact . | . . . Slashing . | . . . Piercing . | . . . Sneak Attacks . | . . . Combat Hostiles . | . . . Follow-up Attacks . | . . . Damage Inflicted 1232 | 106 935 191 Guns 1048 | 106 925 17 Cannons . | . . . Explosions 174 | . . 174 Melee . | . . . Ramming 10 | . 10 . Kinetic 717 | 106 594 17 Thermal 331 | . 331 . Explosive 174 | . . 174 Electromagnetic . | . . . Impact . | . . . Slashing . | . . . Piercing . | . . . Highest Corruption . | . . . Average Corruption . | . . . Corruption Purged . | . . . Corruption Blocked . | . . . Overload Shots . | . . . Overflow Damage . | . . . Projectiles . | . . . Explosions . | . . . Melee . | . . . Knockbacks . | . . . Impact . | . . . Kinetic . | . . . Secondary . | . . . Self-Inflicted Damage 57 | . . 57 Shots 2 | . . 2 Rammed 1 | . 1 . Targets Rammed 2 | . 2 . Kicked 1 | . 1 . Crushed . | . . . Highest Temperature 298 | . 188 298 Average Temperature 56 | . 45 198 Received Heat Transfer 959 | . 354 605 Siege Activations . | . . . Martial Activations . | . . . Shielding Activations . | . . . Robots Disrupted . | . . . Combat Hostiles . | . . . Robots Corrupted . | . . . Combat Hostiles . | . . . Parts Fried . | . . . Impact Corruptions . | . . . Robots Melted . | . . . Combat Hostiles . | . . . Parts Melted . | . . . Heat Transferred 1036 | . 1036 . Parts Sabotaged . | . . . Parts Stolen . | . . . Parts Stripped . | . . . Power Chain Reactions . | . . . Alert | -11 -10 -10 ------- Run | Yrd Mat Sub Maximum Alert Level . | . . . Low Security (%) 100 | 100 100 . Level 1 . | . . . Level 2 . | . . . Level 3 . | . . . Level 4 . | . . . Level 5 . | . . . High Security . | . . . Max Security . | . . . Peak Influence 156 | 5 156 . Initial 3 | . 3 . Average 70 | 1 78 . Influence Increases 551 | 10 541 . Destroy 0b10 Robot/C 320 | . 320 . Destroy 0b10 Robot/NC 35 | 10 25 . Destroy Leader 68 | . 68 . Successful Hack 21 | . 21 . Destroy Structure 2 | . 2 . Lose Combat Pursuer 105 | . 105 . Influence Decreases 551 | 5 452 94 Entered New Map 48 | . 2 46 Time Decay 415 | 5 390 20 Lost Part 88 | . 60 28 Squads Dispatched 3 | . 3 . Investigation 2 | . 2 . Extermination . | . . . Reinforcement 1 | . 1 . Assault . | . . . Garrison . | . . . Intercept . | . . . Searches Triggered . | . . . Construction Impeded . | . . . Haulers Reinforced . | . . . Active Scanning Responses . | . . . Cargo Convoy Interrupts . | . . . Stealth | -11 -10 -10 --------- Run | Yrd Mat Sub Distress Signals 2 | . 2 . Communications Jammed . | . . . Distress Signals . | . . . Times Spotted 35 | . 31 4 Peak Tracking Total 6 | . 6 4 Tactical Retreats 5 | . 5 . Traps | -11 -10 -10 ------- Run | Yrd Mat Sub Traps Triggered 1 | . 1 . Indirectly . | . . . Trap Hack Attempts . | . . . Triggered . | . . . Disarmed . | . . . Reprogrammed . | . . . Reused . | . . . Traps Extracted . | . . . Installed . | . . . Triggered . | . . . Machines | -11 -10 -10 ---------- Run | Yrd Mat Sub Machines Disabled . | . . . Max in Single Turn . | . . . Machines Repaired . | . . . Machines Dismantled . | . . . Machines Sabotaged . | . . . Overloaded Fab Kills . | . . . Hacking | -11 -10 -10 --------- Run | Yrd Mat Sub Machines Accessed 7 | . 7 . Terminals 5 | . 5 . Fabricators . | . . . Repair Stations 1 | . 1 . Recycling Units 1 | . 1 . Scanalyzers . | . . . Garrison Access . | . . . Total Hacks 21 | . 21 . Successful 7 | . 7 . Failed 14 | . 14 . Catastrophic 3 | . 3 . Database Lockouts . | . . . Manual 10 | . 10 . Terminals 17 | . 17 . Fabricators . | . . . Repair Stations 2 | . 2 . Recycling Units 2 | . 2 . Scanalyzers . | . . . Garrison Access . | . . . Terminal Hacks 5 | . 5 . Robot Analysis 1 | . 1 . Prototype ID Bank 1 | . 1 . Scanalyzer Index 1 | . 1 . Registered Components 1 | . 1 . Zone Layout 1 | . 1 . Fabricator Hacks . | . . . Repair Station Hacks 1 | . 1 . Refit 1 | . 1 . Recycling Unit Hacks . | . . . Scanalyzer . | . . . Garrison Access Hacks . | . . . Unauthorized Hacks 1 | . 1 . Terminals 1 | . 1 . Operators 1 | . 1 . Fabricators . | . . . Repair Stations . | . . . Recycling Units . | . . . Scanalyzers . | . . . Garrison Access . | . . . Data Cores Recovered . | . . . Used . | . . . Hacking Detections 7 | . 7 . Full Trace Events 1 | . 1 . Feedback Events . | . . . Feedback Blocked . | . . . Robot Schematics Acquired . | . . . Robots Built . | . . . Authchips . | . . . Time . | . . . Total Robot Build Rating . | . . . Part Schematics Acquired . | . . . Parts Built . | . . . Authchips . | . . . Time . | . . . Total Part Build Rating . | . . . Part Studies Acquired . | . . . Parts Repaired . | . . . Time . | . . . Parts Recycled . | . . . Recycled Matter . | . . . Retrieved Matter . | . . . Retrieved Components . | . . . Parts Scanalyzed . | . . . Part Schematics Acquired . | . . . Parts Damaged . | . . . Bothacking | -11 -10 -10 ------------ Run | Yrd Mat Sub Used RIF Installer . | . . . Robots Hacked . | . . . Non-combat . | . . . Combat . | . . . Robot Hacks Applied . | . . . Relay Couplers Released . | . . . Fabnet Peak Effective % . | . . . Robots Rewired . | . . . Allies Hacked . | . . . Hacks Repelled . | . . . Allies | -11 -10 -10 -------- Run | Yrd Mat Sub Total Allies . | . . . Largest Group . | . . . Highest-Rated Group . | . . . Highest-Rated Ally . | . . . Total Orders . | . . . Ally Attacks . | . . . Total Damage . | . . . Kills . | . . . Allies Corrupted . | . . . Allies Melted . | . . . Intel | -11 -10 -10 ------- Run | Yrd Mat Sub Active Infowar (turns) 810 | . 743 67 Terrain 385 | . 385 . Structural 425 | . 358 67 Robot Analysis Total 1 | . 1 . Derelict Logs Recovered . | . . . Drone Launches . | . . . Drone Recoveries . | . . . Exploration | -11 -10 -10 ------------- Run | Yrd Mat Sub Turns Passed 1234 | 119 1048 67 Spaces Moved 566 | 59 473 34 Core 6 | 6 . . Treads 276 | 53 223 . Legs 284 | . 250 34 Wheels . | . . . Hover . | . . . Flight . | . . . Fastest Speed 50 | 50 120 120 Average Speed 139 | 148 138 130 Slowest Speed 190 | 160 160 190 Overloaded Moves . | . . . Propulsion Burnouts . | . . . Robots Hopped . | . . . Potential Cave-ins . | . . . Cave-ins Triggered . | . . . Exploration Rate (%) 27 | 4 76 3 Regions Visited 2 Branch Regions 1 Pre-discovered Areas . | . . . Known Exits Taken . | . . . Unknown Exits Taken 2 | 1 1 . Scrap Searched . | . . . Spaces Dug 2 | . 2 . Terrain Destroyed 13 | . 2 11 Melee . | . . . Projectile 2 | . 2 . AOE 11 | . . 11 Terrain Rammed . | . . . Walls Destroyed . | . . . Machines Disabled . | . . . Actions | -11 -10 -10 --------- Run | Yrd Mat Sub Total 849 | 76 724 49 Wait 146 | . 139 7 Move 564 | 58 472 34 Hop . | . . . Pick Up 15 | 6 9 . Fast Attach 11 | 5 5 1 Attach 5 | . 4 1 Detach . | . . . Swap 3 | . 2 1 Drop 6 | . 6 . Fire 97 | 7 85 5 Melee . | . . . Ram . | . . . Kick 1 | . 1 . Crush 1 | . 1 . Escape Stasis . | . . . Rewire . | . . . Trap . | . . . Miscellaneous . | . . . Route ------- -11/Scrapyard -10/Materials (discovered 5 exits: [*Mat x2] / [*Min x2] / [*Sub]) -10/Subcaves History --------- Turn | Location | Event 2 | -11/Scrapyard | Met Revision 17 11 | -11/Scrapyard | Discovered new exit (range 15) 120 | -11/Scrapyard | Entered Materials 286 | -10/Materials | Discovered new exit (range 11) 317 | -10/Materials | Build established: Mutant 409 | -10/Materials | Discovered new exit (range 10) 697 | -10/Materials | Lost 3 parts (1p1u1w) 875 | -10/Materials | Discovered new exit (range 15) 895 | -10/Materials | Discovered new exit (range 6) 1040 | -10/Materials | Core integrity fell below 50% 1121 | -10/Materials | Discovered new exit (range 6) 1168 | -10/Materials | Entered Subcaves 1169 | -10/Subcaves | Approached by a straggling Scientist 1233 | -10/Subcaves | Core integrity fell below 20% 1235 | -10/Subcaves | Destroyed by 7H-H8F(R) with Subdweller Beam Cannon Last Messages --------------- can get us both out of this nasty situation. At least I think I can... The group I got separated from was talking about a shortcut back to the UFD." 01213_ Aluminum Leg destroyed. 01217_ VU-W80(R) destroyed. AT-JCV(c): "I think it's somewhere northeast of here" 01219_ Subatomizers dissect the Sub. Machine Gun. 01222_ Med. Laser destroyed. 01223_ Critical hit (Meltdown: +280). 01223_ VP-P2Y(R) destroyed. 01225_ Mining Laser destroyed. 01229_ Grenade Launcher destroyed. 01230_ Subatomizers dissect the Sub. Machine Gun. 01230_ Aluminum Leg destroyed. 01230_ Acquired Sub. Machine Gun. 01231_ Critical hit (Meltdown: +280). Map ----- +----------------------------------------------------+ | ?????????????????????????????????????????????????? | | ?????????????????????????????????????????????????? | | ?????????????????????????????????????????????????? | | ?????????????????????????????????????????????????? | | ?????????????????????????????????????????????????? | | ?????????????????????????????????????????????????? | | ?????????????????????????????????????????????????? | | ?????????????????????????????????????????????????? | | ?????????????????????????????????????????????????? | | ?????????????????????????????????????????????????? | | ?????????????????????????????????????????????????? | | ?????????????????????????????????????????????????? | | ?????????????????????????????????????????????????? | | ?????????????????? ??????????????????????????????? | | ?????????????????? ??????????????????????????????? | | ?????????????????# ?????????????????????????????? | | ?????????????????## ?????????????????????????????? | | ?????????????????## ?????????????????????????????? | | ?????????????????## ?????#########???????????????? | | ?????????????????# ????#########???????????????? | | ??????????## ???##" ??#### # # ##???????????????? | | ??????????## ?###" ###### ???????????????? | | ??????????## ## " ####""# # ?????????????????? | | ??????????## ## ###"" ###????????????????? | | ??????????## "" = # ######?????????????? | | ??????????# "" @& # ######????????????? | | ??????????????? ##" R=%R" # ###????????????? | | ????????????????###" [*""" ###?## ???????? | | ?????????????????##" "" ####### ##????? | | ?????????????????## # # ## ## ##????? | | ?????????????????## # ###### ##????? | | ?????????????????#### ""# #### ##????? | | ?????????????????"### "" ## # ###????? | | ???????????????????## #########????? | | ???????????????????### ## ###############?????? | | ???????????????????####### #########???????????? | | ????????????????????####### ????????????????????? | | ????????????????????????### ????????????????????? | | ?????????????????????????### ????????????????????? | | ?????????????????????????####????????????????????? | | ?????????????????????????????????????????????????? | | ?????????????????????????????????????????????????? | | ?????????????????????????????????????????????????? | | ?????????????????????????????????????????????????? | | ?????????????????????????????????????????????????? | | ?????????????????????????????????????????????????? | | ?????????????????????????????????????????????????? | | ?????????????????????????????????????????????????? | | ?????????????????????????????????????????????????? | | ?????????????????????????????????????????????????? | +----------------------------------------------------+ Best States ------------- Heat Dissipation 25 Energy Generation 10 Energy Capacity 250 Matter Stores 300 Matter Capacity 300 Sight Range 16 Terrain Scan Range 16 Terrain Scan Density 10 Armor Coverage 80 Evasion (%) 55 Recoil Reduction 2 Item Schematics ----------------- None Robot Schematics ------------------ None Fabricated ------------ Nothing Repaired ---------- Nothing Studied --------- None Alien Tech Used ----------------- None Achievements -------------- You Again Challenges ------------ None Game ------ Seed TerrorCentriumLoader Manual? 0 Play Time 00:15:46 Cumulative 41.5 hours Start 2025.11.30 @ 20:52:05 End 2025.12.01 @ 11:17:03 Sessions 3 Manual Loads 0 Difficulty Rogue Special Mode None Game No. 34 Rogue 34 Adventurer 0 Explorer 0 Win Type - Total 0 Types 0/0/0/0/0/0/0/0/0/0 Lore% 23 Gallery% 34 Achievement% 28 Wizard Run 0 Options --------- Layout 1 ASCII 0 Keyboard 0 Movement Mouse Keybinds 0 Fullscreen 1 Font 24/Smallcaps Map View 50x35 Zoom Use 0% Tactical HUD 1 Map Filters NONE Filters NONE Steam 1 RUN: 09118da1-abb8-466c-b504-801c0a5ddf8c